Department Family,Entity,Date,Expense Type,Expense Area,Supplier,Transaction Number,Amount
DOH,London Ambulance Service NHS Trust,01/09/2020,Capitalised Software,Capital,Nhs Waltham Forest Ccg,4904,353215
DOH,London Ambulance Service NHS Trust,01/09/2020,It Technical Support,Capital,Nhs Waltham Forest Ccg,4904,407893
DOH,London Ambulance Service NHS Trust,01/09/2020,Project Management,Capital,Nhs Waltham Forest Ccg,4904,304633
DOH,London Ambulance Service NHS Trust,01/09/2020,Project Management,Capital,Nhs Waltham Forest Ccg,5108,-341666.82
DOH,London Ambulance Service NHS Trust,09/09/2020,Buildings,Capital,Gray Dungate Poole Ltd,515037,69337.24
DOH,London Ambulance Service NHS Trust,01/09/2020,Ambulance Equipment,Managed Stores,Stryker Uk Ltd,520999,26976
DOH,London Ambulance Service NHS Trust,04/09/2020,Buildings,Capital,Smith & Company Building & Company,521574,70923.06
DOH,London Ambulance Service NHS Trust,23/09/2020,Buildings,Capital,Toureen Retail Ltd,523086,30452.69
DOH,London Ambulance Service NHS Trust,02/09/2020,Cad Tools Maintenance,Cad Support,Priority Dispatch,525716,100151.01
DOH,London Ambulance Service NHS Trust,21/09/2020,Lease Costs For Ops Vehicles,Fleet Support Services,De Lage Landen Leasing Ltd,535119,43200
DOH,London Ambulance Service NHS Trust,21/09/2020,Lease Costs For Ops Vehicles,Fleet Support Services,De Lage Landen Leasing Ltd,540688,43200
DOH,London Ambulance Service NHS Trust,01/09/2020,Occupational Health Fees,Healthy Workplace,People Asset Management Ltd,546116,29600.39
DOH,London Ambulance Service NHS Trust,01/09/2020,Building Maintenance,Amb Station Consolidation,Gray Dungate Poole Ltd,546161,178400.44
DOH,London Ambulance Service NHS Trust,11/09/2020,Furniture & Fittings,Secure Drugs Phase 1,Hospital Metalcraft Limited,546167,27806.22
DOH,London Ambulance Service NHS Trust,01/09/2020,St John Ambulance Service,Covid-19 - 999 Operations,St John Ambulance Londonprince,546998,35973
DOH,London Ambulance Service NHS Trust,09/09/2020,Contract Labour,Vehicle Resouce Centre,Churchill Contract Services Ltd,548415,119744.2
DOH,London Ambulance Service NHS Trust,01/09/2020,Fleet Maintenance,Covid-19 - Fleet,Aa Developments Ltd,548426,723483
DOH,London Ambulance Service NHS Trust,01/09/2020,Occupational Health Fees,Healthy Workplace,People Asset Management Ltd,548438,56828.59
DOH,London Ambulance Service NHS Trust,01/09/2020,Professional Fees,Im&T Tech Design Authority,Tm Management Solutions Ltd,548503,37500
DOH,London Ambulance Service NHS Trust,01/09/2020,Blanket Purchase,Covid-19 - Logistics,Thomas Kneale & Co Ltd,548647,62905.92
DOH,London Ambulance Service NHS Trust,01/09/2020,Managed Service - Call Handler,Covid-19 - Iuc Service,Inhealth Ltd,549182,131019
DOH,London Ambulance Service NHS Trust,01/09/2020,Professional Fees,Covid-19 - Corp & Support,Moorhouse Consulting,549612,85488
DOH,London Ambulance Service NHS Trust,01/09/2020,Professional Fees,Covid-19 - Corp & Support,Moorhouse Consulting,549613,26441.7
DOH,London Ambulance Service NHS Trust,01/09/2020,Subscriptions To Associations,Covid-19 - Logistics,Wise Software (Uk) Ltd,549706,160367.87
DOH,London Ambulance Service NHS Trust,16/09/2020,Agency Professional Staff,111 Iuc Central Cost,Moorhouse Consulting,549714,36618
DOH,London Ambulance Service NHS Trust,16/09/2020,Agency Professional Staff,111 Iuc Central Cost,Moorhouse Consulting,549716,37740
DOH,London Ambulance Service NHS Trust,01/09/2020,Tyres,Fleet Support Services,Ats Euromaster Ltd,549719,32677.5
DOH,London Ambulance Service NHS Trust,11/09/2020,Technical Support - Contract,Capita Contract,Capita Secure Information Solutions Ltd,549929,194292.56
DOH,London Ambulance Service NHS Trust,02/09/2020,Cad Tools Maintenance,Cad Support,Northgate Public Services (Uk) Ltd,550026,55464.3
DOH,London Ambulance Service NHS Trust,01/09/2020,Electrical Planned,Control Centre Resilience Ex,Gretton Ward Electrical Limited,550196,37080
DOH,London Ambulance Service NHS Trust,09/09/2020,Subscriptions To Associations,Covid-19 - Logistics,Wise Software (Uk) Ltd,550339,99831.6
DOH,London Ambulance Service NHS Trust,09/09/2020,Course And Conference Fees,Hazardous Area Response Team,The Ian Wright Organisation,550740,25543.2
DOH,London Ambulance Service NHS Trust,23/09/2020,Cleaning Of Premises,Property Management,Lakethorne Ltd,550841,105252.94
DOH,London Ambulance Service NHS Trust,09/09/2020,Rent,Maritime House Estates,Dooba Investments Iii Limited,550853,194201.09
DOH,London Ambulance Service NHS Trust,09/09/2020,Service Charges,Maritime House Estates,Dooba Investments Iii Limited,550853,82123.44
DOH,London Ambulance Service NHS Trust,02/09/2020,Cad Tools Maintenance,Cad Support,Priority Dispatch,551233,-100151.01
DOH,London Ambulance Service NHS Trust,21/09/2020,Rent,Brent Estates,Workman Llp,551246,25529.36
DOH,London Ambulance Service NHS Trust,16/09/2020,Rent,Brent Estates,Workman Llp,551275,32293.8
DOH,London Ambulance Service NHS Trust,16/09/2020,Service Charges,Brent Estates,Workman Llp,551275,1893.3
DOH,London Ambulance Service NHS Trust,01/09/2020,Cleaning Of Premises,Covid-19 - Property,Lakethorne Ltd,551342,28575.1
DOH,London Ambulance Service NHS Trust,04/09/2020,Building Maintenance,Control Centre Resilience Ex,The Electrical And Plumbing Co Ltd,551656,136451.38
DOH,London Ambulance Service NHS Trust,16/09/2020,Computer Software,Covid-19 - Corp & Support,Goodsam Ltd,551792,61345.39
DOH,London Ambulance Service NHS Trust,16/09/2020,Professional Fees,Covid-19 - Im&T,Bt Plc,552110,26437.5
DOH,London Ambulance Service NHS Trust,23/09/2020,Network Equipment & Services,Capital,Bt Plc,552112,43623.88
DOH,London Ambulance Service NHS Trust,04/09/2020,Buildings,Capital,Smith & Company Building & Company,552179,74316
DOH,London Ambulance Service NHS Trust,01/09/2020,Private Ambulance Hire,Ops Central - Private Amb,Falck Uk Ambulance Service Ltd,552193,48489.37
DOH,London Ambulance Service NHS Trust,04/09/2020,Buildings,Capital,Smith & Company Building & Company,552205,-70923.06
DOH,London Ambulance Service NHS Trust,16/09/2020,External Training Services,Epcr Revenue Project Cost,Healthcare Clinical Informatics Limited,552625,36000
DOH,London Ambulance Service NHS Trust,16/09/2020,Medical Equipment,Covid-19 - Critical Care Trans,Philips Electronics Uk Limited,552870,38445.96
DOH,London Ambulance Service NHS Trust,09/09/2020,Professional Fees,Business Intelligence,Bloom Procurement Services Limited,553017,48000
DOH,London Ambulance Service NHS Trust,16/09/2020,Phone & Fax Line Rental,Networks,Bt Plc,553052,59984.04
DOH,London Ambulance Service NHS Trust,11/09/2020,Ambulance Equipment,Supply & Material Management,Openhouse Products Ltd,553187,28622.4
DOH,London Ambulance Service NHS Trust,16/09/2020,Cad Tools Maintenance,Cad Support,Northrop Grumman Information Technology,553359,57576.89
DOH,London Ambulance Service NHS Trust,09/09/2020,Ambulance Equipment,Make Ready Service,Stryker Uk Ltd,554049,28080
DOH,London Ambulance Service NHS Trust,11/09/2020,Private Ambulance Hire,Ops Central - Private Amb,Falck Uk Ambulance Service Ltd,554063,42434.54
DOH,London Ambulance Service NHS Trust,16/09/2020,Rent,Aap Training,Central City Training Venues,554148,108000
DOH,London Ambulance Service NHS Trust,16/09/2020,Building Maintenance,Amb Station Consolidation,Hamlet Commercial Ltd,554402,38483.3
DOH,London Ambulance Service NHS Trust,23/09/2020,Computer Software Maintenance,Onelondon Project,Cerner Ltd,554930,87706
DOH,London Ambulance Service NHS Trust,21/09/2020,Managed Service - Adv Para Pra,111 Sel Operations,Hays Specialist Recruitment Ltd,555262,25256.14
DOH,London Ambulance Service NHS Trust,21/09/2020,Managed Service - Adv Para Pra,111 Sel Operations,Hays Specialist Recruitment Ltd,555262,11241.74
DOH,London Ambulance Service NHS Trust,21/09/2020,Managed Service - Adv Prac,111 Nel Operations,Hays Specialist Recruitment Ltd,555262,295274.2
DOH,London Ambulance Service NHS Trust,21/09/2020,Managed Service - Adv Prac,111 Sel Operations,Hays Specialist Recruitment Ltd,555262,262649.3
DOH,London Ambulance Service NHS Trust,21/09/2020,Managed Service - Call Handler,111 Nel Operations,Hays Specialist Recruitment Ltd,555262,78121.76
DOH,London Ambulance Service NHS Trust,21/09/2020,Managed Service - Call Handler,111 Sel Operations,Hays Specialist Recruitment Ltd,555262,165644.93
DOH,London Ambulance Service NHS Trust,21/09/2020,Managed Service - Gps,111 Nel Operations,Hays Specialist Recruitment Ltd,555262,332022.08
DOH,London Ambulance Service NHS Trust,21/09/2020,Managed Service - Gps,111 Sel Operations,Hays Specialist Recruitment Ltd,555262,551756.92
DOH,London Ambulance Service NHS Trust,21/09/2020,Managed Service - Nurses,111 Nel Operations,Hays Specialist Recruitment Ltd,555262,92193.38
DOH,London Ambulance Service NHS Trust,21/09/2020,Managed Service - Nurses,111 Sel Operations,Hays Specialist Recruitment Ltd,555262,126800.62
DOH,London Ambulance Service NHS Trust,21/09/2020,Managed Service - Adv Para Pra,111 Nel Operations,Hays Specialist Recruitment Ltd,555262,1630.51
DOH,London Ambulance Service NHS Trust,23/09/2020,Cleaning Of Premises,Covid-19 - Property,Lakethorne Ltd,555975,28575.1
DOH,London Ambulance Service NHS Trust,25/09/2020,Medical Gas,Director Of Ops,British Oxygen,77247,106401.99
DOH,London Ambulance Service NHS Trust,15/09/2020,CNST Contributions,Legal Services,NHS Litigation Authority,77073,470345.2
DOH,London Ambulance Service NHS Trust,15/09/2020,Liability to a 3rd Party Scheme,Legal Services,NHS Litigation Authority,77073,59094.4
DOH,London Ambulance Service NHS Trust,16/09/2020,Property Expenses Scheme,Legal Services,NHS Litigation Authority,77073,1807
DOH,London Ambulance Service NHS Trust,01/09/2020,Ensign Insurance Pre-Payment,Balance Sheet,QBE Insurance,76817,282968.75
DOH,London Ambulance Service NHS Trust,15/09/2020,BP Control Account,Balance Sheet,BP Oil,77073,211587.16
DOH,London Ambulance Service NHS Trust,30/09/2020,BP Control Account,Balance Sheet,BP Oil,77557,203800.26
